fUST/lending_fUST_20260114
["ID","MTS","AMOUNT","RATE_DAILY","PERIOD"]
[401794985,1768377061955,-216.477356,0.0002902,7]
[401794986,1768377061966,-216.477355,0.0002902,7]
[401794987,1768377061976,-382.165336,0.0002902,7]
[401794988,1768377061985,-382.165336,0.0002902,7]
[401794989,1768377061995,-382.165336,0.0002902,7]
[401794990,1768377062004,-382.165333,0.0002902,7]
[401794991,1768377062015,-886.569727,0.0002902,7]
[401794992,1768377062024,-886.569727,0.0002902,7]
[401794993,1768377062034,-886.569727,0.0002902,7]
[401794994,1768377062044,-886.569728,0.0002902,7]
[401794995,1768377062053,-950.0,0.00029041,5]
[401794996,1768377062063,-450.0,0.00029041,5]
[401794997,1768377062074,-450.0,0.00029041,5]
[401794998,1768377062084,-4075.02132479,0.00029057,5]
[401794999,1768377062094,-8783.42146672,0.00029057,5]
[401795000,1768377062104,-500.0,0.00029074,14]
[401795001,1768377062113,-651.16,0.000291,2]
[401795002,1768377062124,-2116.0,0.000291,2]
[401795003,1768377062134,-530.45390237,0.0002913,5]
[401795004,1768377062143,-151.0,0.0002923,7]
[401795005,1768377062154,-151.0,0.0002923,7]
[401795006,1768377062164,-203.817058,0.0002923,7]
[401795007,1768377062175,-151.0,0.0002923,7]
[401795008,1768377062184,-151.0,0.0002923,7]
[401795009,1768377062195,-151.0,0.0002923,7]
[401795010,1768377062205,-151.0,0.0002923,7]
[401795011,1768377062216,-500.0,0.00029233,30]
[401795012,1768377062225,-256.11583356,0.00029233,30]
[401795013,1768377062235,-159.0,0.00029288,33]
[401795014,1768377062244,-2854.31,0.00029315,6]
[401795015,1768377062254,-150.15,0.000294,2]
[401795016,1768377062263,-151.3,0.000294,2]
[401795017,1768377062273,-197.29706096,0.00029584,3]
[401795018,1768377062282,-656.01795132,0.00029589,5]
[401795019,1768377062302,-550.0,0.00029589,5]
[401795020,1768377062315,-550.0,0.00029589,5]
[401795021,1768377062325,-5000.0,0.00029599,30]
[401795022,1768377062335,-651.16,0.000296,2]
[401795023,1768377062345,-4046.54,0.000296,14]
[401795024,1768377062355,-2116.0,0.000296,2]
[401795025,1768377062365,-151.0,0.00029638,7]
[401795026,1768377062376,-151.0,0.00029638,7]
[401795027,1768377062386,-151.0,0.00029638,7]
[401795028,1768377062397,-154.067553,0.00029638,7]
[401795029,1768377062407,-1041.66666667,0.000297,10]
[401795030,1768377062417,-5000.0,0.00029768,2]
[401795031,1768377062427,-1000.0,0.00029885,30]
[401795032,1768377062438,-1000.0,0.00029885,30]
[401795034,1768377062447,-1000.0,0.00029885,30]
[401795035,1768377062457,-40340.44,0.000299,2]
[401795036,1768377062468,-167.76,0.000299,7]
[401795038,1768377062478,-151.0,0.000299,7]
[401795040,1768377062488,-151.0,0.000299,7]
[401795042,1768377062499,-151.0,0.000299,7]
[401795044,1768377062509,-151.0,0.000299,7]
[401795046,1768377062518,-151.0,0.000299,7]
[401795048,1768377062528,-17952.77810656,0.0003,2]
[401795049,1768377062538,-6224.19804505,0.0003,2]
[401795050,1768377062548,-1125.0,0.0003,5]
[401795051,1768377062557,-165.46,0.0003,5]
[401795053,1768377062566,-269.88164411,0.0003,2]
[401795054,1768377062577,-238.0,0.0003,14]
[401795055,1768377062587,-700.0,0.0003,2]
[401795056,1768377062596,-1000.0,0.0003,2]
[401795057,1768377062606,-1322.74,0.0003,2]
[401795058,1768377062619,-154.81198228,0.0003,5]
[401795059,1768377062633,-323.0,0.0003,3]
[401795060,1768377062643,-2944.31972672,0.0003,30]
[401795061,1768377062653,-2764.89292842,0.0003,2]
[401795062,1768377062663,-14028.13015713,0.0003,7]
[401795063,1768377062673,-161.8907008,0.0003,7]
[401795064,1768377062683,-1019.0,0.0003,7]
[401795065,1768377062696,-2000.0,0.0003,7]
[401795066,1768377062706,-192.66,0.00030047,2]
[401795067,1768377062716,-192.66,0.00030063,2]
[401795068,1768377062725,-155.06,0.000301,2]
[401795069,1768377062735,-651.16,0.000301,2]
[401795070,1768377062744,-150.95,0.000301,2]
[401795071,1768377062754,-151.3,0.000301,2]
[401795072,1768377062763,-2113.56,0.000301,7]
[401795073,1768377062773,-10000.0,0.0003013,2]
[401795074,1768377062782,-376.8200359,0.0003013,30]
[401795075,1768377062792,-500.0,0.00030136,2]
[401795076,1768377062802,-500.0,0.00030136,2]
[401795077,1768377062812,-510.55698594,0.00030136,2]
[401795078,1768377062821,-500.0,0.00030136,8]
[401795079,1768377062829,-450.60081956,0.00030136,8]
[401795080,1768377062838,-181.793142,0.00030136,7]
[401795081,1768377062847,-151.0,0.00030136,7]
[401795082,1768377062856,-151.0,0.00030136,7]
[401795083,1768377062864,-151.0,0.00030136,7]
[401795084,1768377062874,-176.130106,0.00030136,7]
[401795085,1768377062884,-1000.0,0.00030136,2]
[401795086,1768377062893,-1000.0,0.00030136,2]
[401795087,1768377062903,-1000.0,0.00030136,2]
[401795088,1768377062912,-1000.0,0.00030136,2]
[401795089,1768377062922,-1000.0,0.00030136,2]
[401795090,1768377062931,-1000.0,0.00030136,2]
[401795091,1768377062941,-1000.0,0.00030136,2]
[401795092,1768377062951,-1000.0,0.00030136,2]
[401795093,1768377062961,-224.80837806,0.00030136,7]
[401795094,1768377062971,-1000.0,0.00030136,2]
[401795095,1768377062981,-1000.0,0.00030136,2]
[401795096,1768377062991,-1000.0,0.00030136,2]
[401795097,1768377063001,-1000.0,0.00030136,2]
[401795098,1768377063011,-1000.0,0.00030136,2]
[401795099,1768377063021,-1000.0,0.00030136,2]
[401795100,1768377063032,-1000.0,0.00030136,2]
[401795101,1768377063042,-1000.0,0.00030136,2]
[401795102,1768377063052,-1000.0,0.00030136,2]
[401795103,1768377063062,-601.50689548,0.00030136,2]
[401795104,1768377063072,-151.0,0.00030136,7]
[401795105,1768377063082,-151.0,0.00030136,7]
[401795106,1768377063092,-151.0,0.00030136,7]
[401795107,1768377063101,-218.833933,0.00030136,7]
[401795108,1768377063111,-151.0,0.00030136,7]
[401795109,1768377063120,-601.21589033,0.00030136,2]
[401795110,1768377063130,-837.36,0.00030136,2]
[401795111,1768377063141,-837.36,0.00030136,2]
[401795112,1768377063154,-837.36,0.00030136,2]
[401795113,1768377063165,-837.36,0.00030136,2]
[401795114,1768377063175,-837.36,0.00030136,2]
[401795115,1768377063185,-837.36,0.00030136,2]
[401795116,1768377063196,-837.36,0.00030136,2]
[401795117,1768377063205,-837.36,0.00030136,2]
[401795118,1768377063215,-837.36,0.00030136,2]
[401795119,1768377063225,-837.36,0.00030136,2]
[401795120,1768377063236,-837.36,0.00030136,2]
[401795121,1768377063246,-837.36,0.00030136,2]
[401795122,1768377063256,-837.36,0.00030136,2]
[401795123,1768377063381,-837.36,0.00030136,2]
[401795124,1768377063393,-837.36,0.00030136,2]
[401795125,1768377063403,-837.36,0.00030136,2]
[401795126,1768377063414,-837.36,0.00030136,2]
[401795127,1768377063424,-837.36,0.00030136,2]
[401795128,1768377063434,-837.36,0.00030136,2]
[401795129,1768377063444,-837.36,0.00030136,2]
[401795130,1768377063453,-837.36,0.00030136,2]
[401795131,1768377063463,-837.36,0.00030136,2]
[401795132,1768377063473,-837.36,0.00030136,2]
[401795133,1768377063483,-837.36005193,0.00030136,2]
[401795134,1768377063492,-500.0,0.00030136,2]
[401795135,1768377063501,-500.0,0.00030136,2]
[401795136,1768377063510,-500.0,0.00030136,2]
[401795138,1768377063519,-500.0,0.00030136,2]
[401795140,1768377063529,-500.0,0.00030136,2]
[401795142,1768377063538,-500.0,0.00030136,2]
[401795143,1768377063547,-500.0,0.00030136,2]
[401795144,1768377063556,-455.4900817,0.00030136,2]
[401795145,1768377063565,-1000.0,0.00030136,2]
[401795146,1768377063575,-579.56900066,0.00030136,2]
[401795147,1768377063585,-570.63788098,0.00030136,30]
[401795148,1768377063595,-15704.34,0.00030136,3]
[401795149,1768377063604,-500.0,0.00030136,7]
[401795150,1768377063615,-15704.34,0.00030136,3]
[401795152,1768377063627,-616.46894229,0.00030136,7]
[401795154,1768377063637,-15704.34,0.00030136,3]
[401795156,1768377063647,-15704.34,0.00030136,3]
[401795157,1768377063656,-15704.34,0.00030136,3]
[401795159,1768377063666,-15704.34,0.00030136,3]
[401795161,1768377063676,-15704.34,0.00030136,3]
[401795163,1768377063686,-15704.34,0.00030136,3]
[401795164,1768377063698,-15704.34,0.00030136,3]
[401795166,1768377063707,-15704.34,0.00030136,3]
[401795168,1768377063717,-15704.34,0.00030136,3]
[401795170,1768377063726,-15704.34,0.00030136,3]
[401795172,1768377063736,-15704.34,0.00030136,3]
[401795174,1768377063745,-15704.34,0.00030136,3]
[401795176,1768377063755,-15704.34,0.00030136,3]
[401795178,1768377063765,-15704.34,0.00030136,3]
[401795180,1768377063773,-15704.34,0.00030136,3]
[401795182,1768377063783,-15704.34,0.00030136,3]
[401795184,1768377063792,-15704.34,0.00030136,3]
[401795186,1768377063802,-15704.34,0.00030136,3]
[401795187,1768377063814,-15704.34,0.00030136,3]
[401795188,1768377063824,-15704.34,0.00030136,3]
[401795189,1768377063833,-15704.34,0.00030136,3]
[401795190,1768377063842,-15704.4661618,0.00030136,3]
[401795191,1768377063852,-1025.18,0.00030136,21]
[401795192,1768377063862,-1025.18,0.00030136,21]
[401795193,1768377063871,-1025.18,0.00030136,21]
[401795194,1768377063881,-1025.18,0.00030136,21]
[401795195,1768377063891,-1025.18,0.00030136,21]
[401795196,1768377063901,-1025.18,0.00030136,21]
[401795197,1768377063911,-1025.18,0.00030136,21]
[401795198,1768377063921,-1025.18,0.00030136,21]
[401795199,1768377063931,-1025.18,0.00030136,21]
[401795200,1768377063941,-1025.18,0.00030136,21]
[401795201,1768377063950,-1025.18,0.00030136,21]
[401795202,1768377063960,-1025.18,0.00030136,21]
[401795204,1768377063971,-1025.18,0.00030136,21]
[401795205,1768377063981,-1025.18,0.00030136,21]
[401795207,1768377063991,-1025.18,0.00030136,21]
[401795209,1768377064000,-1025.18,0.00030136,21]
[401795210,1768377064009,-1025.18,0.00030136,21]
[401795212,1768377064018,-1025.18,0.00030136,21]
[401795214,1768377064028,-1025.18,0.00030136,21]
[401795216,1768377064037,-1025.18,0.00030136,21]
[401795217,1768377064048,-1025.18,0.00030136,21]
[401795218,1768377064058,-1025.18,0.00030136,21]
[401795220,1768377064068,-1025.18,0.00030136,21]
[401795222,1768377064078,-1025.33729357,0.00030136,21]
[401795224,1768377064089,-500.0,0.00030136,2]
[401795226,1768377064099,-500.0,0.00030136,2]
[401795227,1768377064109,-468.00282616,0.00030136,2]
[401795229,1768377064119,-504.47042686,0.00030136,60]
[401795230,1768377064129,-500.0,0.00030136,2]
[401795232,1768377064139,-500.0,0.00030136,2]
[401795234,1768377064149,-500.0,0.00030136,2]
[401795236,1768377064159,-500.0,0.00030136,2]
[401795238,1768377064169,-500.0,0.00030136,2]
[401795239,1768377064179,-500.0,0.00030136,2]
[401795240,1768377064189,-500.0,0.00030136,2]
[401795241,1768377064199,-500.0,0.00030136,2]
[401795242,1768377064209,-500.0,0.00030136,2]
[401795243,1768377064219,-500.0,0.00030136,2]
[401795244,1768377064228,-500.0,0.00030136,2]
[401795245,1768377064238,-500.0,0.00030136,2]
[401795246,1768377064248,-500.0,0.00030136,3]
[401795247,1768377064258,-500.0,0.00030136,2]
[401795248,1768377064268,-500.0,0.00030136,3]
[401795249,1768377064277,-500.0,0.00030136,2]
[401795250,1768377064287,-500.0,0.00030136,3]
[401795251,1768377064296,-500.0,0.00030136,2]
[401795252,1768377064305,-286.91332979,0.00030136,3]
[401795253,1768377064314,-500.0,0.00030136,2]
[401795254,1768377064323,-500.0,0.00030136,2]
[401795255,1768377064332,-500.0,0.00030136,2]
[401795256,1768377064341,-500.0,0.00030136,2]
[401795257,1768377064350,-513.88942387,0.00030136,2]
[401795258,1768377064360,-1000.0,0.00030136,2]
[401795259,1768377064370,-1000.0,0.00030136,2]
[401795260,1768377064380,-1000.0,0.00030136,2]
[401795261,1768377064389,-1000.0,0.00030136,2]
[401795262,1768377064399,-1000.0,0.00030136,2]
[401795263,1768377064408,-1000.0,0.00030136,2]
[401795264,1768377064418,-1000.0,0.00030136,2]
[401795265,1768377064427,-1000.0,0.00030136,2]
[401795266,1768377064437,-1000.0,0.00030136,2]
[401795267,1768377064446,-1000.0,0.00030136,2]
[401795268,1768377064455,-1000.0,0.00030136,2]
[401795269,1768377064464,-1000.0,0.00030136,2]
[401795270,1768377064474,-500.0,0.00030136,2]
[401795271,1768377064483,-1000.0,0.00030136,2]
[401795272,1768377064493,-500.0,0.00030136,2]
[401795273,1768377064502,-951.08890803,0.00030136,2]
[401795274,1768377064514,-500.0,0.00030136,2]
[401795275,1768377064524,-500.0,0.00030136,2]
[401795276,1768377064534,-500.0,0.00030136,2]
[401795277,1768377064544,-500.0,0.00030136,2]
[401795278,1768377064554,-500.0,0.00030136,2]
[401795279,1768377064564,-500.0,0.00030136,2]
[401795280,1768377064573,-500.0,0.00030136,2]
[401795281,1768377064582,-500.0,0.00030136,2]
[401795282,1768377064591,-500.0,0.00030136,2]
[401795283,1768377064601,-500.0,0.00030136,2]
[401795284,1768377064610,-500.0,0.00030136,2]
[401795285,1768377064623,-500.0,0.00030136,2]
[401795286,1768377064633,-500.0,0.00030136,2]
[401795287,1768377064642,-612.37980742,0.00030136,2]
[401795288,1768377064651,-500.0,0.00030137,7]
[401795289,1768377064660,-500.0,0.00030137,10]
[401795290,1768377064670,-650.0,0.00030137,5]
[401795291,1768377064680,-650.0,0.00030137,5]
[401795292,1768377064690,-643.17927596,0.00030137,120]
[401795293,1768377064701,-47703.0,0.00030137,120]
[401795294,1768377064711,-191.93290973,0.00030142,120]
[401795295,1768377064721,-192.66,0.00030145,2]
[401795296,1768377064730,-2825.94,0.000302,4]
[401795297,1768377064740,-267.88,0.000303,7]
[401795298,1768377064750,-253.24,0.000303,7]
[401795299,1768377064761,-17059.47398929,0.00030334,120]
[401795300,1768377064772,-753.68865104,0.00030685,5]
[401795301,1768377064783,-750.0,0.00030685,5]
[401795302,1768377064792,-500.0,0.00030718,14]
[401795303,1768377064802,-5000.0,0.00030768,2]
[401795304,1768377064812,-151.0,0.000308,11]
[401795305,1768377064822,-151.0,0.000308,19]
[401795306,1768377064831,-629.0,0.00030861,2]
[401795307,1768377064841,-1367.0,0.00030861,2]
[401795308,1768377064851,-2147.0,0.00030861,2]
[401795309,1768377064861,-10000.0,0.0003087,7]
[401795310,1768377064870,-397.2,0.00030958,30]
[401795311,1768377064880,-2854.31,0.00030958,8]
[401795312,1768377064890,-306.2903269,0.0003099,2]
[401795313,1768377064899,-700.0,0.00031,120]
[401795314,1768377064989,-255.21814757,0.00031,120]
[401795315,1768377064999,-187.13237888,0.00031,120]
[401795316,1768377065009,-176.54852494,0.00031,120]
[401795317,1768377065018,-218.43016663,0.00031,120]
[401795318,1768377065027,-199.90617293,0.00031,120]
[401795319,1768377065037,-287.40793029,0.00031,120]
[401795320,1768377065046,-441.39048417,0.00031,120]
[401795321,1768377065056,-1041.66666667,0.00031,7]
[401795322,1768377065066,-4046.54,0.00031,14]
[401795323,1768377065076,-1019.0,0.00031,7]
[401795324,1768377065086,-1041.66666667,0.00031,3]
[401795325,1768377065095,-2000.0,0.00031,7]
[401795326,1768377065105,-14335.98473415,0.0003112,2]
[401795327,1768377065115,-850.0,0.00031233,5]
[401795328,1768377065124,-24345.2760125,0.00031439,2]
[401795329,1768377065134,-172.0,0.00031479,46]
[401795330,1768377065143,-2065.53,0.000315,8]
[401795331,1768377065153,-40340.44,0.000315,2]
[401795332,1768377065162,-397.2,0.00031506,31]
[401795333,1768377065171,-5060.02652051,0.0003151,29]
[401795334,1768377065182,-6907.95101879,0.0003151,34]
[401795335,1768377065192,-14150.53090947,0.00031512,2]
[401795336,1768377065201,-5000.0,0.00031768,2]
[401795337,1768377065211,-195.235333,0.00031781,5]
[401795338,1768377065221,-10078.29155809,0.0003187,2]
[401795339,1768377065230,-40023.10367651,0.0003187,7]
[401795340,1768377065239,-44000.56106195,0.000319,2]
[401795341,1768377065250,-176.54852494,0.000319,120]
[401795342,1768377065259,-441.39048417,0.000319,120]
[401795343,1768377065269,-1041.66666667,0.000319,3]
[401795344,1768377065279,-310.0,0.00031918,14]
[401795345,1768377065288,-3001.6406244,0.00031955,2]
[401795346,1768377065296,-200.9102234,0.00032,2]
[401795347,1768377065306,-2000.0,0.00032,8]
[401795348,1768377065315,-700.0,0.00032,120]
[401795349,1768377065324,-7161.35610169,0.00032,30]
[401795350,1768377065333,-30552.268,0.00032,2]
[401795351,1768377065343,-260.0,0.00032,120]
[401795352,1768377065353,-9241.19925314,0.00032,120]
[401795353,1768377065362,-349.999999,0.00032,2]
[401795354,1768377065372,-310.0,0.00032,14]
[401795355,1768377065382,-2000.0,0.00032,7]
[401795356,1768377065391,-397.2,0.00032054,32]
[401795357,1768377065402,-631752.35,0.000321,5]
[401795358,1768377065413,-1000.98,0.000321,5]
[401795359,1768377065423,-100105.93,0.000321,5]
[401795360,1768377065433,-500.0,0.0003216,2]
[401795361,1768377065443,-303.18799259,0.00032182,2]
[401795362,1768377065453,-151.0,0.00032195,31]
[401795363,1768377065462,-151.0,0.00032195,31]
[401795364,1768377065474,-243.779961,0.00032195,31]
[401795365,1768377065484,-151.65165165,0.00032206,2]
[401795366,1768377065493,-500.0,0.00032328,7]
[401795367,1768377065503,-500.0,0.00032328,7]
[401795368,1768377065513,-500.0,0.00032328,7]
[401795369,1768377065523,-500.0,0.00032328,7]
[401795370,1768377065533,-500.0,0.00032328,7]
[401795371,1768377065544,-500.0,0.00032328,7]
[401795372,1768377065554,-500.0,0.00032328,7]
[401795373,1768377065564,-500.0,0.00032328,7]
[401795374,1768377065573,-500.0,0.00032328,7]
[401795375,1768377065583,-493.83129116,0.00032328,7]
[401795376,1768377065592,-500.0,0.00032362,14]
[401795377,1768377065602,-1000.0,0.000324,120]
[401795378,1768377065612,-570.08660281,0.0003244,120]
[401795379,1768377065623,-5006.26660425,0.0003248,2]
[401795380,1768377065632,-221.4041485,0.000325,120]
[401795381,1768377065641,-1333105.28419098,0.00032508,30]
[401795382,1768377066713,-0.00324112,0.00010373,2]
[401795383,1768377067148,-233.51565229,0.00010373,2]
[401795384,1768377067157,-242.15909246,0.00010373,2]
[401795385,1768377067167,-251.11897888,0.00010373,2]
[401795386,1768377067177,-323.39571937,0.00010853,2]
[401795387,1768377067187,-335.36136099,0.00011401,2]
[401795388,1768377067197,-398.5202822,0.00011949,2]
[401795389,1768377067206,-533.88981491,0.00012565,2]
[401795390,1768377067216,-553.64373807,0.00013113,2]
[401795391,1768377067226,-574.12855637,0.00013661,2]
[401795392,1768377067235,-595.37131296,0.00014209,2]
[401795393,1768377067245,-449.36725905,0.00015152,2]
[401795394,1768377067500,-260.4103811,0.00010373,2]
[401795395,1768377067511,-102.19483678,0.00010373,2]
[401795397,1768377142983,206.0,0.0003,120]
[401795402,1768377200870,400.0,0.0003,120]
[401795403,1768377216152,-951.1733503,0.0001,2]
[401795404,1768377231402,-300.0,0.00010067,2]
[401795405,1768377231598,-7479.03,0.00010068,2]
[401795406,1768377231751,-10000.01,0.00010068,2]
[401795407,1768377232070,-10000.01,0.00010068,2]
[401795408,1768377232282,-10000.01,0.00010068,2]
[401795409,1768377232609,-10000.01,0.00010068,2]
[401795410,1768377232788,-2520.93,0.00010068,2]
[401795411,1768377243013,300.0,0.00010067,2]
[401795413,1768377276787,276.42,6.732e-05,2]
[401795414,1768377277215,414.63,7.038e-05,2]
[401795415,1768377277636,552.84,7.344e-05,2]
[401795416,1768377278049,691.05,7.65e-05,2]
[401795417,1768377278456,829.26,7.956e-05,2]
[401795418,1768377278847,967.47,8.262e-05,2]
[401795419,1768377279263,926.48,8.568e-05,2]
[401795420,1768377279293,179.2,8.568e-05,2]
[401795421,1768377279695,1243.88,8.874e-05,2]
[401795422,1768377280095,1382.09,9.18e-05,2]
[401795423,1768377302228,300.0,0.00010067,2]
[401795424,1768377309266,500.0,0.0003,120]
[401795428,1768377352293,172.89,7.423e-05,2]
[401795429,1768377352693,216.11,7.733e-05,2]
[401795430,1768377353129,259.33,8.042e-05,2]
[401795431,1768377353566,302.55,8.351e-05,2]
[401795432,1768377353695,-500.0,0.00010068,2]
[401795433,1768377353735,-386.52031406,0.00010068,2]
[401795434,1768377353773,-500.0,0.00010068,2]
[401795435,1768377353812,-465.65289835,0.00010068,2]
[401795436,1768377353846,-221.42677722,0.00010068,2]
[401795437,1768377353881,-314.04083309,0.00010068,2]
[401795438,1768377353918,-500.0,0.00010068,2]
[401795439,1768377353952,-632.93350938,0.00010068,2]
[401795440,1768377353991,-500.0,0.00010068,2]
[401795441,1768377354029,-302.03529919,0.00010068,2]
[401795442,1768377354077,-500.0,0.00010068,2]
[401795443,1768377354505,-500.0,0.00010068,2]
[401795444,1768377354543,-310.49433569,0.00010068,2]
[401795445,1768377354582,-500.0,0.00010068,2]
[401795446,1768377354622,-500.0,0.00010068,2]
[401795447,1768377354663,-500.0,0.00010068,2]
[401795448,1768377354704,-500.0,0.00010068,2]
[401795449,1768377354749,-500.0,0.00010068,2]
[401795450,1768377354787,-500.0,0.00010068,2]
[401795451,1768377354826,-500.0,0.00010068,2]
[401795452,1768377354863,-500.0,0.00010068,2]
[401795453,1768377354947,345.77,8.661e-05,2]
[401795454,1768377355082,-500.0,0.00010068,2]
[401795455,1768377355121,-500.0,0.00010068,2]
[401795456,1768377355165,-500.0,0.00010068,2]
[401795457,1768377355208,-500.0,0.00010068,2]
[401795458,1768377355249,-271.76055345,0.00010068,2]
[401795459,1768377355291,-500.0,0.00010068,2]
[401795460,1768377355334,-500.0,0.00010068,2]
[401795461,1768377355378,-500.0,0.00010068,2]
[401795462,1768377355418,-500.0,0.00010068,2]
[401795463,1768377355458,-500.0,0.00010068,2]
[401795464,1768377355575,-500.0,0.00010068,2]
[401795465,1768377355614,-500.0,0.00010068,2]
[401795466,1768377355660,-500.0,0.00010068,2]
[401795467,1768377355699,-500.0,0.00010068,2]
[401795468,1768377355742,-500.0,0.00010068,2]
[401795469,1768377355785,-500.0,0.00010068,2]
[401795470,1768377355827,-500.0,0.00010068,2]
[401795471,1768377355868,-500.0,0.00010068,2]
[401795472,1768377355907,-500.0,0.00010068,2]
[401795473,1768377355948,-500.0,0.00010068,2]
[401795474,1768377355999,389.0,8.97e-05,2]
[401795475,1768377356048,-500.0,0.00010068,2]
[401795476,1768377356090,-500.0,0.00010068,2]
[401795477,1768377356130,-500.0,0.00010068,2]
[401795478,1768377356168,-500.0,0.00010068,2]
[401795479,1768377356208,-500.0,0.00010068,2]
[401795480,1768377356250,-500.0,0.00010068,2]
[401795481,1768377356291,-500.0,0.00010068,2]
[401795482,1768377356328,-500.0,0.00010068,2]
[401795483,1768377356368,-500.0,0.00010068,2]
[401795484,1768377356408,-500.0,0.00010068,2]
[401795485,1768377356515,-500.0,0.00010068,2]
[401795486,1768377356557,-500.0,0.00010068,2]
[401795487,1768377356596,-500.0,0.00010068,2]
[401795488,1768377356635,-500.0,0.00010068,2]
[401795489,1768377356672,-500.0,0.00010068,2]
[401795490,1768377356713,-500.0,0.00010068,2]
[401795491,1768377356751,-500.0,0.00010068,2]
[401795492,1768377356790,-500.0,0.00010068,2]
[401795493,1768377356830,-500.0,0.00010068,2]
[401795494,1768377356870,-500.0,0.00010068,2]
[401795495,1768377357109,-500.0,0.00010068,2]
[401795496,1768377357150,-500.0,0.00010068,2]
[401795497,1768377357193,-500.0,0.00010068,2]
[401795498,1768377357238,-500.0,0.00010068,2]
[401795499,1768377357281,-415.94307189,0.00010068,2]
[401795500,1768377357323,-500.0,0.00010068,2]
[401795501,1768377357362,-500.0,0.00010068,2]
[401795502,1768377357512,-500.0,0.00010068,2]
[401795503,1768377357554,-500.0,0.00010068,2]
[401795504,1768377357595,-500.0,0.00010068,2]
[401795505,1768377357645,432.22,9.279e-05,2]
[401795506,1768377357807,-500.0,0.00010068,2]
[401795507,1768377357851,-500.0,0.00010068,2]
[401795508,1768377357891,-500.0,0.00010068,2]
[401795509,1768377357930,-500.0,0.00010068,2]
[401795510,1768377357971,-500.0,0.00010068,2]
[401795511,1768377358011,-500.0,0.00010068,2]
[401795512,1768377358051,-500.0,0.00010068,2]
[401795513,1768377358093,-500.0,0.00010068,2]
[401795514,1768377358132,-500.0,0.00010068,2]
[401795515,1768377358171,-500.0,0.00010068,2]
[401795516,1768377358312,-500.0,0.00010068,2]
[401795517,1768377358352,-500.0,0.00010068,2]
[401795518,1768377358391,-500.0,0.00010068,2]
[401795519,1768377358433,-500.0,0.00010068,2]
[401795520,1768377358473,-500.0,0.00010068,2]
[401795521,1768377358517,-500.0,0.00010068,2]
[401795522,1768377358563,-500.0,0.00010068,2]
[401795523,1768377358603,-500.0,0.00010068,2]
[401795524,1768377358643,-450.0,0.00010068,2]
[401795525,1768377358683,-500.0,0.00010068,2]
[401795526,1768377361190,-500.0,0.00010068,2]
[401795527,1768377361240,-500.0,0.00010068,2]
[401795528,1768377361289,-500.0,0.00010068,2]
[401795529,1768377361333,-500.0,0.00010068,2]
[401795530,1768377361382,-500.0,0.00010068,2]
[401795531,1768377361434,-500.0,0.00010068,2]
[401795532,1768377361486,-500.0,0.00010068,2]
[401795533,1768377361533,-500.0,0.00010068,2]
[401795534,1768377361578,-500.0,0.00010068,2]
[401795535,1768377361625,-500.0,0.00010068,2]
[401795536,1768377361699,-500.0,0.00010068,2]